[Event "4NCL Div 2 2024-25"]
[Site "England"]
[Date "2025.04.06"]
[Round "8.33"]
[White "Webb, Richard M"]
[Black "Siva Mahadevan"]
[Result "0-1"]
[Annotator "ChessBase"]
[ECO "B23"]
[WhiteElo "2172"]
[BlackElo "2369"]
[PlyCount "64"]
[EventDate "2024.11.23"]
[EventType "team-tourn"]
[EventCountry "ENG"]
[SourceTitle "playchess.com"]
[Source "ChessBase"]
[SourceQuality "1"]
[TimeControl "40/6000+30:3000+30"]

1. e4 {[%emt 0:10:04]} c5 {[%emt 0:10:21]} 2. Nc3 {[%emt 0:00:10]} Nc6 {[%emt 0:00:30]} 3. Bb5 {[%emt 0:00:18]} Nd4 {[%emt 0:00:41]} 4. Nf3 {[%emt 0:00:17]} a6 {[%emt 0:00:38]} 5. Bd3 {[%emt 0:00:29]} g6 {[%emt 0:02:43]} 6. O-O {[%emt 0:01:10]} Bg7 {[%emt 0:00:58]} 7. Rb1 {[%emt 0:01:12]} Nc6 {[%emt 0:00:21]} 8. a3 {[%emt 0:00:28]} b5 {[%emt 0:06:08]} 9. Re1 {[%emt 0:04:08]} e6 {[%emt 0:04:13]} 10. b4 {[%emt 0:14:11]} c4 {[%emt 0:10:29]} 11. Bf1 {[%emt 0:01:18]} Nge7 {[%emt 0:00:10]} 12. Bb2 {[%emt 0:07:46]} O-O {[%emt 0:01:55]} 13. d3 {[%emt 0:08:03]} d5 {[%emt 0:01:55]} 14. exd5 {[%emt 0:09:30]} exd5 {[%emt 0:01:04]} 15. dxc4 {[%emt 0:00:14]} dxc4 {[%emt 0:00:40]} 16. Qxd8 {[%emt 0:02:03]} Rxd8 {[%emt 0:00:25]} 17. a4 {[%emt 0:00:54]} Rb8 {[%emt 0:01:23]} 18. axb5 {[%emt 0:00:29]} axb5 {[%emt 0:00:07]} 19. Ne4 {[%emt 0:04:21]} Nd5 {[%emt 0:01:01]} 20. Bxg7 {[%emt 0:01:45]} Kxg7 {[%emt 0:02:27]} 21. c3 {[%emt 0:04:27]} Bf5 {[%emt 0:17:49]} 22. Rbc1 {[%emt 0:01:25]} Ra8 {[%emt 0:00:35]} 23. Nfd2 {[%emt 0:03:30]} Ra3 {[%emt 0:01:38]} 24. Ra1 {[%emt 0:03:24]} Rda8 {[%emt 0:02:55]} 25. Rxa3 {[%emt 0:01:13]} Rxa3 {[%emt 0:00:01]} 26. Nd6 {[%emt 0:07:18]} Nxc3 {[%emt 0:00:34]} 27. Nxf5+ {[%emt 0:01:07]} gxf5 {[%emt 0:00:02]} 28. Nf3 {[%emt 0:00:46]} Kf6 {[%emt 0:03:39]} 29. g3 {[%emt 0:01:37]} Ne4 {[%emt 0:01:36]} 30. Bg2 {[%emt 0:00:26]} c3 {[%emt 0:00:15]} 31. Nh4 {[%emt 0:00:45]} Nxb4 {[%emt 0:01:37]} 32. Nxf5 {[%emt 0:00:58]} Nd3 {[%emt 0:00:12]} 0-1

[Event "4NCL Div 2 2024-25"]
[Site "England"]
[Date "2025.04.06"]
[Round "8.34"]
[White "York-Weaving, Richard"]
[Black "Cooksey, Paul S"]
[Result "1-0"]
[Annotator "ChessBase"]
[ECO "B12"]
[WhiteElo "2331"]
[BlackElo "2234"]
[PlyCount "91"]
[EventDate "2024.11.23"]
[EventType "team-tourn"]
[EventCountry "ENG"]
[SourceTitle "playchess.com"]
[Source "ChessBase"]
[SourceQuality "1"]
[TimeControl "40/6000+30:3000+30"]

1. e4 {[%emt 0:10:04]} c6 {[%emt 0:10:06]} 2. d4 {[%emt 0:00:04]} d5 {[%emt 0:00:06]} 3. e5 {[%emt 0:00:03]} Bf5 {[%emt 0:00:08]} 4. Nf3 {[%emt 0:00:05]} e6 {[%emt 0:00:08]} 5. Be2 {[%emt 0:00:04]} Ne7 {[%emt 0:01:09]} 6. c3 {[%emt 0:00:09]} h6 {[%emt 0:07:22]} 7. O-O {[%emt 0:02:43]} Bh7 {[%emt 0:00:59]} 8. Na3 {[%emt 0:05:20]} Nf5 {[%emt 0:04:08]} 9. Nc2 {[%emt 0:00:30]} c5 {[%emt 0:02:34]} 10. g4 {[%emt 0:09:53]} Nh4 {[%emt 0:03:41]} 11. Nxh4 {[%emt 0:01:26]} Qxh4 {[%emt 0:00:08]} 12. f4 {[%emt 0:00:44]} Nc6 {[%emt 0:03:39]} 13. Be3 {[%emt 0:06:39]} cxd4 {[%emt 0:05:28]} 14. cxd4 {[%emt 0:03:31]} Rc8 {[%emt 0:05:58]} 15. Ne1 {[%emt 0:05:55]} Bb4 {[%emt 0:04:01]} 16. Ng2 {[%emt 0:04:51]} Qe7 {[%emt 0:03:04]} 17. f5 {[%emt 0:03:14]} Ba5 {[%emt 0:05:40]} 18. Bd3 {[%emt 0:15:18]} Bb6 {[%emt 0:06:44]} 19. fxe6 {[%emt 0:03:36]} fxe6 {[%emt 0:00:35]} 20. Bxh7 {[%emt 0:02:21]} Rxh7 {[%emt 0:00:13]} 21. Qd3 {[%emt 0:02:28]} g5 {[%emt 0:00:47]} 22. Rf6 {[%emt 0:02:36]} Nd8 {[%emt 0:00:57]} 23. h4 {[%emt 0:04:31]} Kd7 {[%emt 0:03:01]} 24. hxg5 {[%emt 0:02:44]} hxg5 {[%emt 0:00:07]} 25. Raf1 {[%emt 0:07:09]} Rh3 {[%emt 0:02:29]} 26. Qg6 {[%emt 0:06:17]} Rh7 {[%emt 0:05:30]} 27. Qxg5 {[%emt 0:02:32]} Rc2 {[%emt 0:03:10]} 28. Nh4 {[%emt 0:04:36]} Kc8 {[%emt 0:07:11]} 29. Qg6 {[%emt 0:03:15]} Rxb2 {[%emt 0:03:19]} 30. Nf3 {[%emt 0:00:37]} Rh3 {[%emt 0:03:05]} 31. Rf2 {[%emt 0:00:35]} Qb4 {[%emt 0:07:44]} 32. Kg2 {[%emt 0:00:27]} Rh8 {[%emt 0:04:34]} 33. Qg7 {[%emt 0:00:47]} Re8 {[%emt 0:00:51]} 34. g5 {[%emt 0:00:57]} Rb1 {[%emt 0:01:18]} 35. Rh6 {[%emt 0:01:04]} Qa3 {[%emt 0:03:24]} 36. Qg6 {[%emt 0:00:29]} Qxe3 {[%emt 0:00:15]} 37. Qxb1 {[%emt 0:00:24]} Bxd4 {[%emt 0:00:33]} 38. Qc2+ {[%emt 0:00:50]} Nc6 {[%emt 0:00:56]} 39. Re2 {[%emt 0:00:29]} Qc3 {[%emt 0:01:29]} 40. Rh4 {[%emt 0:00:38]} Qxc2 {[%emt 0:01:58]} 41. Rxc2 {[%emt 0:50:05]} Be3 {[%emt 0:51:34]} 42. Kg3 {[%emt 0:00:00]} Rg8 {[%emt 0:00:00]} 43. Rch2 {[%emt 0:00:00]} Kd7 {[%emt 0:00:00]} 44. Rh8 {[%emt 0:00:00]} Rg6 {[%emt 0:00:00]} 45. R2h7+ {[%emt 0:00:00]} Ne7 {[%emt 0:00:00]} 46. Kg4 {[%emt 0:00:00]} 1-0

[Event "4NCL Div 2 2024-25"]
[Site "England"]
[Date "2025.04.06"]
[Round "8.35"]
[White "Kacprzak, Kacper"]
[Black "Bowcott-Terry, Finlay"]
[Result "1-0"]
[Annotator "ChessBase"]
[ECO "B31"]
[WhiteElo "2291"]
[BlackElo "2168"]
[PlyCount "117"]
[EventDate "2024.11.23"]
[EventType "team-tourn"]
[EventCountry "ENG"]
[SourceTitle "playchess.com"]
[Source "ChessBase"]
[SourceQuality "1"]
[TimeControl "40/6000+30:3000+30"]

1. e4 {[%emt 0:10:04]} c5 {[%emt 0:10:06]} 2. Nf3 {[%emt 0:00:07]} Nc6 {[%emt 0:00:06]} 3. Bb5 {[%emt 0:00:06]} g6 {[%emt 0:00:26]} 4. O-O {[%emt 0:00:22]} Bg7 {[%emt 0:00:43]} 5. c3 {[%emt 0:00:32]} e5 {[%emt 0:01:49]} 6. d4 {[%emt 0:00:24]} cxd4 {[%emt 0:08:46]} 7. cxd4 {[%emt 0:00:11]} exd4 {[%emt 0:00:07]} 8. Bf4 {[%emt 0:00:04]} Nge7 {[%emt 0:00:31]} 9. Bd6 {[%emt 0:05:13]} O-O {[%emt 0:02:22]} 10. Nbd2 {[%emt 0:00:33]} a6 {[%emt 0:02:09]} 11. Ba4 {[%emt 0:01:50]} b6 {[%emt 0:01:41]} 12. Re1 {[%emt 0:05:39]} Bb7 {[%emt 0:01:59]} 13. Rc1 {[%emt 0:09:16]} Re8 {[%emt 0:02:57]} 14. Bb3 {[%emt 0:07:29]} Nc8 {[%emt 0:01:05]} 15. Bg3 {[%emt 0:04:26]} d6 {[%emt 0:05:35]} 16. Bd5 {[%emt 0:17:15]} Qd7 {[%emt 0:11:02]} 17. Qb3 {[%emt 0:09:00]} b5 {[%emt 0:32:38]} 18. Bxc6 {[%emt 0:01:28]} Bxc6 {[%emt 0:00:08]} 19. Qd3 {[%emt 0:00:05]} Bb7 {[%emt 0:03:53]} 20. Nxd4 {[%emt 0:01:26]} Nb6 {[%emt 0:00:14]} 21. b3 {[%emt 0:03:41]} Rac8 {[%emt 0:02:36]} 22. N4f3 {[%emt 0:04:40]} Rcd8 {[%emt 0:05:40]} 23. Bf4 {[%emt 0:07:54]} Qg4 {[%emt 0:05:16]} 24. Bg5 {[%emt 0:02:22]} f6 {[%emt 0:03:57]} 25. Be3 {[%emt 0:07:23]} Nd7 {[%emt 0:00:02]} 26. h3 {[%emt 0:01:26]} Qe6 {[%emt 0:00:24]} 27. Nd4 {[%emt 0:00:32]} Qf7 {[%emt 0:00:24]} 28. Qc3 {[%emt 0:05:04]} Nc5 {[%emt 0:00:42]} 29. f3 {[%emt 0:00:26]} Rc8 {[%emt 0:00:14]} 30. Qa1 {[%emt 0:00:50]} Nd3 {[%emt 0:00:15]} 31. Rxc8 {[%emt 0:00:07]} Rxc8 {[%emt 0:00:05]} 32. Rd1 {[%emt 0:00:26]} f5 {[%emt 0:04:37]} 33. Qb1 {[%emt 0:01:43]} Nb4 {[%emt 0:01:56]} 34. a3 {[%emt 0:01:45]} Rc3 {[%emt 0:00:45]} 35. Nf1 {[%emt 0:02:15]} Nc6 {[%emt 0:00:24]} 36. Nxc6 {[%emt 0:00:52]} Rxc6 {[%emt 0:00:55]} 37. exf5 {[%emt 0:00:17]} gxf5 {[%emt 0:00:44]} 38. Bd4 {[%emt 0:00:47]} Bh6 {[%emt 0:01:20]} 39. Re1 {[%emt 0:00:49]} Rc8 {[%emt 0:00:19]} 40. Qd3 {[%emt 0:01:41]} Bd5 {[%emt 0:00:26]} 41. Ng3 {[%emt 0:49:36]} Rf8 {[%emt 0:27:12]} 42. Bf2 {[%emt 0:00:00]} Bg7 {[%emt 0:05:38]} 43. Bd4 {[%emt 0:00:00]} Bxb3 {[%emt 0:04:35]} 44. Bxg7 {[%emt 0:00:00]} Bc4 {[%emt 0:00:03]} 45. Qxd6 {[%emt 0:00:00]} Qxg7 {[%emt 0:00:05]} 46. Re7 {[%emt 0:00:00]} Qf6 {[%emt 0:01:41]} 47. Qc5 {[%emt 0:00:00]} Qg5 {[%emt 0:03:17]} 48. Kh2 {[%emt 0:00:00]} Qg6 {[%emt 0:04:29]} 49. Re5 {[%emt 0:00:00]} Be6 {[%emt 0:00:04]} 50. Qe7 {[%emt 0:00:00]} Bc8 {[%emt 0:01:09]} 51. Rd5 {[%emt 0:00:00]} Qg7 {[%emt 0:01:46]} 52. Qh4 {[%emt 0:00:00]} Qc7 {[%emt 0:00:45]} 53. f4 {[%emt 0:00:00]} Qc4 {[%emt 0:03:26]} 54. Qg5+ {[%emt 0:01:25]} Kh8 {[%emt 0:00:26]} 55. Nh5 {[%emt 0:01:58]} Qc7 {[%emt 0:00:03]} 56. Rd6 {[%emt 0:02:44]} a5 {[%emt 0:00:17]} 57. Rh6 {[%emt 0:00:14]} Rf7 {[%emt 0:00:54]} 58. Nf6 {[%emt 0:00:23]} Qd8 {[%emt 0:00:01]} 59. Qg6 {[%emt 0:00:34]} 1-0

[Event "4NCL Div 2 2024-25"]
[Site "England"]
[Date "2025.04.06"]
[Round "8.36"]
[White "Valdepenas Octavio, Javier"]
[Black "Starosta, Martyna"]
[Result "1-0"]
[Annotator "ChessBase"]
[ECO "C03"]
[WhiteElo "2145"]
[BlackElo "2309"]
[PlyCount "83"]
[EventDate "2024.11.23"]
[EventType "team-tourn"]
[EventCountry "ENG"]
[SourceTitle "playchess.com"]
[Source "ChessBase"]
[SourceQuality "1"]
[TimeControl "40/6000+30:3000+30"]

1. e4 {[%emt 0:20:17]} e6 {[%emt 0:10:05]} 2. d4 {[%emt 0:00:31]} d5 {[%emt 0:00:04]} 3. Nd2 {[%emt 0:00:31]} h6 {[%emt 0:00:06]} 4. Ngf3 {[%emt 0:06:52]} Nf6 {[%emt 0:00:07]} 5. e5 {[%emt 0:00:39]} Nfd7 {[%emt 0:00:08]} 6. Bd3 {[%emt 0:08:30]} c5 {[%emt 0:00:08]} 7. c3 {[%emt 0:00:03]} Nc6 {[%emt 0:00:07]} 8. a3 {[%emt 0:03:12]} Qb6 {[%emt 0:02:25]} 9. O-O {[%emt 0:01:22]} cxd4 {[%emt 0:06:44]} 10. cxd4 {[%emt 0:00:19]} Nxd4 {[%emt 0:01:16]} 11. Nxd4 {[%emt 0:00:20]} Qxd4 {[%emt 0:00:06]} 12. Nf3 {[%emt 0:00:05]} Qb6 {[%emt 0:00:21]} 13. Qa4 {[%emt 0:00:17]} Be7 {[%emt 0:06:23]} 14. Qg4 {[%emt 0:01:12]} Kf8 {[%emt 0:02:00]} 15. b4 {[%emt 0:04:55]} Qc7 {[%emt 0:13:57]} 16. Bb2 {[%emt 0:02:26]} Nb6 {[%emt 0:02:27]} 17. Rac1 {[%emt 0:10:14]} Qd8 {[%emt 0:01:55]} 18. Nd4 {[%emt 0:06:53]} a5 {[%emt 0:09:37]} 19. b5 {[%emt 0:02:37]} Nd7 {[%emt 0:04:02]} 20. Rfe1 {[%emt 0:11:09]} Bc5 {[%emt 0:02:20]} 21. Nb3 {[%emt 0:06:43]} b6 {[%emt 0:02:34]} 22. Nxc5 {[%emt 0:07:19]} bxc5 {[%emt 0:01:32]} 23. a4 {[%emt 0:00:05]} Bb7 {[%emt 0:04:08]} 24. Ba3 {[%emt 0:04:03]} Rc8 {[%emt 0:00:49]} 25. Qd4 {[%emt 0:09:26]} Qb6 {[%emt 0:05:41]} 26. Rxc5 {[%emt 0:01:09]} Nxc5 {[%emt 0:01:51]} 27. Rc1 {[%emt 0:00:03]} Kg8 {[%emt 0:03:10]} 28. Bxc5 {[%emt 0:01:45]} Qd8 {[%emt 0:00:43]} 29. h4 {[%emt 0:01:24]} g6 {[%emt 0:05:20]} 30. h5 {[%emt 0:00:05]} Qg5 {[%emt 0:01:44]} 31. Re1 {[%emt 0:01:00]} Qd2 {[%emt 0:05:25]} 32. Rf1 {[%emt 0:00:29]} Rxc5 {[%emt 0:03:41]} 33. Qxc5 {[%emt 0:00:22]} Qxd3 {[%emt 0:00:17]} 34. Qe7 {[%emt 0:00:40]} Ba8 {[%emt 0:05:05]} 35. Rc1 {[%emt 0:00:26]} Qf5 {[%emt 0:01:29]} 36. Rc8+ {[%emt 0:00:33]} Kg7 {[%emt 0:01:01]} 37. Qf6+ {[%emt 0:00:33]} Qxf6 {[%emt 0:00:13]} 38. exf6+ {[%emt 0:00:02]} Kh7 {[%emt 0:00:08]} 39. hxg6+ {[%emt 0:00:08]} fxg6 {[%emt 0:00:35]} 40. Rc7+ {[%emt 0:00:06]} Kg8 {[%emt 0:00:07]} 41. Rg7+ {[%emt 0:51:24]} Kf8 {[%emt 0:50:26]} 42. Ra7 {[%emt 0:00:09]} 1-0

[Event "4NCL Div 2 2024-25"]
[Site "England"]
[Date "2025.04.06"]
[Round "8.37"]
[White "Thompson, Ian D"]
[Black "Fellowes, Billy"]
[Result "1/2-1/2"]
[Annotator "NA"]
[ECO "A36"]
[WhiteElo "2010"]
[BlackElo "2055"]
[PlyCount "46"]
[EventDate "2024.11.23"]
[EventType "team-tourn"]
[EventCountry "ENG"]
[SourceTitle "playchess.com"]
[Source "ChessBase"]
[SourceQuality "1"]
[TimeControl "40/6000+30:3000+30"]

1. c4 {[%emt 0:10:03]} Nf6 {[%emt 0:10:06]} 2. Nc3 {[%emt 0:00:11]} g6 {[%emt 0:00:06]} 3. g3 {[%emt 0:00:19]} Bg7 {[%emt 0:00:09]} 4. Bg2 {[%emt 0:00:07]} O-O {[%emt 0:00:16]} 5. e4 {[%emt 0:00:26]} c5 {[%emt 0:00:49]} 6. Nge2 {[%emt 0:00:30]} Nc6 {[%emt 0:00:38]} 7. O-O {[%emt 0:00:18]} Rb8 {[%emt 0:02:43]} 8. d4 {[%emt 0:06:43]} cxd4 {[%emt 0:06:53]} 9. Nxd4 {[%emt 0:00:07]} Nxe4 {[%emt 0:15:47]} 10. Nxc6 {[%emt 0:00:42]} Nxc3 {[%emt 0:00:11]} 11. Nxe7+ {[%emt 0:00:37]} Qxe7 {[%emt 0:00:03]} 12. bxc3 {[%emt 0:00:07]} d6 {[%emt 0:08:02]} 13. Ba3 {[%emt 0:08:25]} Rd8 {[%emt 0:01:13]} 14. Qa4 {[%emt 0:05:19]} Be6 {[%emt 0:03:42]} 15. c5 {[%emt 0:05:24]} d5 {[%emt 0:04:25]} 16. Qa5 {[%emt 0:06:04]} Qf6 {[%emt 0:04:28]} 17. Bb4 {[%emt 0:03:21]} Ra8 {[%emt 0:12:23]} 18. Rad1 {[%emt 0:04:05]} b6 {[%emt 0:11:05]} 19. cxb6 {[%emt 0:02:14]} axb6 {[%emt 0:00:05]} 20. Qxb6 {[%emt 0:00:07]} Rab8 {[%emt 0:01:18]} 21. Qa5 {[%emt 0:01:57]} Ra8 {[%emt 0:00:18]} 22. Qb6 {[%emt 0:00:48]} Rab8 {[%emt 0:00:16]} 23. Qa5 {[%emt 0:00:08]} Ra8 {[%emt 0:06:10]} 1/2-1/2

[Event "4NCL Div 2 2024-25"]
[Site "England"]
[Date "2025.04.06"]
[Round "8.38"]
[White "Pitcher, John"]
[Black "Duckers, Harvey L"]
[Result "1-0"]
[Annotator "NA"]
[ECO "C00"]
[WhiteElo "2147"]
[BlackElo "1900"]
[PlyCount "67"]
[EventDate "2024.11.23"]
[EventType "team-tourn"]
[EventCountry "ENG"]
[SourceTitle "playchess.com"]
[Source "ChessBase"]
[SourceQuality "1"]
[TimeControl "40/6000+30:3000+30"]

1. e4 {[%emt 0:10:04]} e6 {[%emt 0:10:16]} 2. d3 {[%emt 0:01:07]} d5 {[%emt 0:00:04]} 3. Nd2 {[%emt 0:00:06]} Nf6 {[%emt 0:00:04]} 4. Ngf3 {[%emt 0:00:10]} Be7 {[%emt 0:00:06]} 5. g3 {[%emt 0:00:24]} b6 {[%emt 0:00:03]} 6. c3 {[%emt 0:00:39]} Bb7 {[%emt 0:00:04]} 7. e5 {[%emt 0:05:29]} Nfd7 {[%emt 0:00:02]} 8. d4 {[%emt 0:00:33]} c5 {[%emt 0:00:05]} 9. Bd3 {[%emt 0:00:51]} cxd4 {[%emt 0:01:01]} 10. cxd4 {[%emt 0:00:06]} Ba6 {[%emt 0:00:09]} 11. Bxa6 {[%emt 0:05:19]} Nxa6 {[%emt 0:00:01]} 12. O-O {[%emt 0:00:13]} O-O {[%emt 0:00:11]} 13. Qe2 {[%emt 0:04:50]} Nb4 {[%emt 0:03:34]} 14. Nb1 {[%emt 0:04:52]} a6 {[%emt 0:01:59]} 15. Nc3 {[%emt 0:01:03]} b5 {[%emt 0:09:04]} 16. h4 {[%emt 0:04:54]} Nb6 {[%emt 0:03:56]} 17. Bg5 {[%emt 0:05:15]} h6 {[%emt 0:00:14]} 18. Bf4 {[%emt 0:03:42]} Nc4 {[%emt 0:04:19]} 19. Rac1 {[%emt 0:02:56]} Qb6 {[%emt 0:03:59]} 20. Rfd1 {[%emt 0:04:01]} Rfd8 {[%emt 0:03:26]} 21. h5 {[%emt 0:00:35]} Rab8 {[%emt 0:01:30]} 22. g4 {[%emt 0:04:38]} Nc6 {[%emt 0:02:58]} 23. Kh1 {[%emt 0:05:24]} a5 {[%emt 0:00:10]} 24. b3 {[%emt 0:02:02]} Na3 {[%emt 0:00:11]} 25. Qe3 {[%emt 0:01:21]} Bf8 {[%emt 0:02:02]} 26. g5 {[%emt 0:05:09]} Ne7 {[%emt 0:00:06]} 27. Nh4 {[%emt 0:00:10]} hxg5 {[%emt 0:01:10]} 28. Bxg5 {[%emt 0:00:08]} Rd7 {[%emt 0:01:06]} 29. Rg1 {[%emt 0:09:35]} Nf5 {[%emt 0:00:11]} 30. Nxf5 {[%emt 0:01:37]} exf5 {[%emt 0:00:03]} 31. Bf6 {[%emt 0:00:29]} Kh7 {[%emt 0:02:05]} 32. Qg5 {[%emt 0:00:50]} Qe6 {[%emt 0:00:01]} 33. Ne2 {[%emt 0:01:29]} f4 {[%emt 0:00:44]} 34. Nxf4 {[%emt 0:02:26]} 1-0

[Event "4NCL Div 2 2024-25"]
[Site "England"]
[Date "2025.04.06"]
[Round "8.39"]
[White "Tart, Peter K"]
[Black "Fallowfield, Jeremy R"]
[Result "1/2-1/2"]
[Annotator "NA"]
[ECO "B23"]
[WhiteElo "1903"]
[BlackElo "2072"]
[PlyCount "35"]
[EventDate "2024.11.23"]
[EventType "team-tourn"]
[EventCountry "ENG"]
[SourceTitle "playchess.com"]
[Source "ChessBase"]
[SourceQuality "1"]
[TimeControl "40/6000+30:3000+30"]

1. e4 {[%emt 0:10:02]} c5 {[%emt 0:12:38]} 2. Nc3 {[%emt 0:00:07]} Nc6 {[%emt 0:00:11]} 3. Bb5 {[%emt 0:00:04]} Nd4 {[%emt 0:00:28]} 4. Nf3 {[%emt 0:00:15]} a6 {[%emt 0:00:45]} 5. Bd3 {[%emt 0:00:08]} g6 {[%emt 0:00:32]} 6. Nxd4 {[%emt 0:02:28]} cxd4 {[%emt 0:00:08]} 7. Ne2 {[%emt 0:00:02]} d5 {[%emt 0:00:15]} 8. c3 {[%emt 0:01:40]} dxe4 {[%emt 0:02:04]} 9. Bxe4 {[%emt 0:02:05]} dxc3 {[%emt 0:00:44]} 10. Qa4+ {[%emt 0:11:39]} Bd7 {[%emt 0:01:44]} 11. Qd4 {[%emt 0:00:05]} cxb2 {[%emt 0:02:13]} 12. Bxb2 {[%emt 0:00:15]} Nf6 {[%emt 0:00:19]} 13. Bxb7 {[%emt 0:06:01]} Rb8 {[%emt 0:00:22]} 14. Bxa6 {[%emt 0:00:07]} Qb6 {[%emt 0:00:53]} 15. Qxb6 {[%emt 0:00:20]} Rxb6 {[%emt 0:00:03]} 16. Bxf6 {[%emt 0:00:13]} Rxf6 {[%emt 0:00:25]} 17. Rb1 {[%emt 0:00:17]} Rxa6 {[%emt 0:01:28]} 18. Rb8+ {[%emt 0:00:28]} 1/2-1/2

[Event "4NCL Div 2 2024-25"]
[Site "England"]
[Date "2025.04.06"]
[Round "8.40"]
[White "Brooks, Phil J"]
[Black "Coates, Kenneth G"]
[Result "1-0"]
[Annotator "ChessBase"]
[ECO "D10"]
[WhiteElo "2124"]
[BlackElo "1934"]
[PlyCount "99"]
[EventDate "2024.11.23"]
[EventType "team-tourn"]
[EventCountry "ENG"]
[SourceTitle "playchess.com"]
[Source "ChessBase"]
[SourceQuality "1"]
[TimeControl "40/6000+30:3000+30"]

1. d4 {[%emt 0:10:02]} d5 {[%emt 0:10:56]} 2. c4 {[%emt 0:00:06]} c6 {[%emt 0:00:06]} 3. cxd5 {[%emt 0:00:04]} cxd5 {[%emt 0:00:08]} 4. Bf4 {[%emt 0:00:03]} Nf6 {[%emt 0:00:31]} 5. e3 {[%emt 0:00:14]} Nc6 {[%emt 0:01:50]} 6. Bd3 {[%emt 0:01:57]} Qb6 {[%emt 0:02:05]} 7. Nc3 {[%emt 0:00:32]} Bg4 {[%emt 0:03:03]} 8. Nge2 {[%emt 0:09:01]} e6 {[%emt 0:02:17]} 9. O-O {[%emt 0:06:00]} Be7 {[%emt 0:07:34]} 10. Na4 {[%emt 0:12:15]} Qa5 {[%emt 0:07:12]} 11. a3 {[%emt 0:07:47]} O-O {[%emt 0:05:16]} 12. b4 {[%emt 0:06:02]} Qd8 {[%emt 0:00:13]} 13. h3 {[%emt 0:05:00]} Bh5 {[%emt 0:02:10]} 14. Nc5 {[%emt 0:04:04]} Bxc5 {[%emt 0:04:30]} 15. bxc5 {[%emt 0:00:05]} Bg6 {[%emt 0:00:36]} 16. Bb5 {[%emt 0:08:00]} Re8 {[%emt 0:11:42]} 17. Bh2 {[%emt 0:01:47]} Nd7 {[%emt 0:00:48]} 18. Nf4 {[%emt 0:01:12]} Qa5 {[%emt 0:03:58]} 19. Ba4 {[%emt 0:01:46]} Rac8 {[%emt 0:01:12]} 20. Nxg6 {[%emt 0:06:38]} hxg6 {[%emt 0:00:13]} 21. Bb3 {[%emt 0:00:24]} b6 {[%emt 0:02:13]} 22. cxb6 {[%emt 0:00:09]} Nxb6 {[%emt 0:01:07]} 23. Qd3 {[%emt 0:01:05]} Ne7 {[%emt 0:05:44]} 24. Bd6 {[%emt 0:00:16]} Nc4 {[%emt 0:03:50]} 25. Bc5 {[%emt 0:00:13]} Rxc5 {[%emt 0:05:58]} 26. dxc5 {[%emt 0:00:05]} Qxc5 {[%emt 0:00:35]} 27. Rfc1 {[%emt 0:02:02]} Rc8 {[%emt 0:01:00]} 28. a4 {[%emt 0:00:19]} Qb4 {[%emt 0:01:28]} 29. Bd1 {[%emt 0:04:25]} Rc6 {[%emt 0:03:42]} 30. Qe2 {[%emt 0:04:35]} a5 {[%emt 0:03:16]} 31. Rab1 {[%emt 0:01:48]} Qd6 {[%emt 0:01:28]} 32. Bb3 {[%emt 0:01:14]} Na3 {[%emt 0:03:19]} 33. Ra1 {[%emt 0:04:23]} Qb4 {[%emt 0:01:45]} 34. Qa2 {[%emt 0:04:11]} Nc4 {[%emt 0:01:31]} 35. Bxc4 {[%emt 0:03:10]} Rxc4 {[%emt 0:01:36]} 36. Rcb1 {[%emt 0:00:54]} Qc5 {[%emt 0:01:01]} 37. Qb2 {[%emt 0:03:27]} Nc6 {[%emt 0:01:29]} 38. Qb5 {[%emt 0:00:28]} Nb4 {[%emt 0:01:06]} 39. Qe8+ {[%emt 0:00:30]} Kh7 {[%emt 0:00:02]} 40. Qxf7 {[%emt 0:00:27]} e5 {[%emt 0:01:35]} 41. Rd1 {[%emt 0:51:59]} d4 {[%emt 0:50:22]} 42. exd4 {[%emt 0:00:42]} exd4 {[%emt 0:00:03]} 43. Re1 {[%emt 0:00:09]} d3 {[%emt 0:05:44]} 44. Re7 {[%emt 0:00:00]} Rc1+ {[%emt 0:00:00]} 45. Rxc1 {[%emt 0:00:00]} Qxc1+ {[%emt 0:00:00]} 46. Kh2 {[%emt 0:00:00]} Qc3 {[%emt 0:00:00]} 47. Rd7 {[%emt 0:00:00]} d2 {[%emt 0:00:00]} 48. Qf4 {[%emt 0:00:00]} Nd3 {[%emt 0:00:00]} 49. Qh4+ {[%emt 0:00:00]} Kg8 {[%emt 0:00:00]} 50. Qd8+ {[%emt 0:00:00]} 1-0